fUST/lending_fUST_20260118
["ID","MTS","AMOUNT","RATE_DAILY","PERIOD"]
[402409906,1768673445841,-500.0,0.00016712,3]
[402409908,1768673445850,-593.77,0.00016712,3]
[402409909,1768673445859,-500.0,0.00016712,3]
[402409911,1768673445869,-500.0,0.00016712,3]
[402409912,1768673445880,-500.0,0.00016712,3]
[402409914,1768673445890,-898.19434577,0.00016712,3]
[402409916,1768673445900,-500.0,0.00016712,3]
[402409917,1768673445909,-500.0,0.00016712,3]
[402409919,1768673445919,-976.67,0.00016712,3]
[402409920,1768673445930,-550.19,0.00016712,3]
[402409922,1768673445940,-520.73,0.00016712,3]
[402409923,1768673445950,-500.0,0.00016712,3]
[402409925,1768673445959,-500.0,0.00016712,3]
[402409926,1768673445969,-500.0,0.00016712,3]
[402409928,1768673445979,-500.0,0.00016712,3]
[402409930,1768673445989,-500.0,0.00016712,3]
[402409931,1768673445998,-500.0,0.00016712,3]
[402409933,1768673446007,-500.0,0.00016712,3]
[402409934,1768673446016,-562.34469649,0.00016712,3]
[402409936,1768673446026,-500.0,0.00016712,3]
[402409937,1768673446038,-500.0,0.00016712,3]
[402409939,1768673446047,-500.0,0.00016712,3]
[402409940,1768673446057,-500.0,0.00016712,3]
[402409942,1768673446067,-500.0,0.00016712,3]
[402409944,1768673446077,-500.0,0.00016712,3]
[402409945,1768673446087,-500.0,0.00016712,3]
[402409947,1768673446096,-500.0,0.00016712,3]
[402409948,1768673446106,-500.0,0.00016712,3]
[402409950,1768673446116,-500.0,0.00016712,3]
[402409951,1768673446126,-500.0,0.00016712,3]
[402409953,1768673446136,-500.0,0.00016712,3]
[402409955,1768673446146,-506.77,0.00016712,3]
[402409956,1768673446155,-684.33,0.00016712,3]
[402409958,1768673446164,-500.0,0.00016712,3]
[402409959,1768673446173,-672.75,0.00016712,3]
[402409961,1768673446183,-500.0,0.00016712,3]
[402409963,1768673446192,-500.0,0.00016712,3]
[402409964,1768673446203,-500.0,0.00016712,3]
[402409966,1768673446213,-500.0,0.00016712,3]
[402409968,1768673446222,-275.38497984,0.00016712,3]
[402409969,1768673446231,-500.0,0.00016712,3]
[402409971,1768673446240,-500.0,0.00016712,3]
[402409972,1768673446248,-807.7,0.00016712,3]
[402409974,1768673446257,-500.0,0.00016712,3]
[402409975,1768673446266,-621.02,0.00016712,3]
[402409976,1768673446276,-500.0,0.00016712,3]
[402409978,1768673446286,-500.0,0.00016712,3]
[402409979,1768673446294,-500.0,0.00016712,3]
[402409981,1768673446303,-500.0,0.00016712,3]
[402409982,1768673446313,-500.0,0.00016712,3]
[402409984,1768673446322,-500.0,0.00016712,3]
[402409985,1768673446332,-500.0,0.00016712,3]
[402409987,1768673446341,-500.0,0.00016712,3]
[402409988,1768673446350,-500.0,0.00016712,3]
[402409990,1768673446360,-500.0,0.00016712,3]
[402409991,1768673446369,-988.01,0.00016712,3]
[402409993,1768673446379,-500.0,0.00016712,3]
[402409995,1768673446389,-500.0,0.00016712,3]
[402409996,1768673446399,-500.0,0.00016712,3]
[402409998,1768673446409,-500.0,0.00016712,3]
[402409999,1768673446418,-500.0,0.00016712,3]
[402410001,1768673446427,-1425.92,0.00016712,3]
[402410002,1768673446436,-500.0,0.00016712,3]
[402410004,1768673446446,-500.0,0.00016712,3]
[402410006,1768673446455,-500.0,0.00016712,3]
[402410007,1768673446465,-500.0,0.00016712,3]
[402410009,1768673446474,-500.0,0.00016712,3]
[402410010,1768673446484,-500.0,0.00016712,3]
[402410012,1768673446493,-727.0,0.00016712,3]
[402410014,1768673446503,-757.81,0.00016712,3]
[402410015,1768673446512,-500.0,0.00016712,3]
[402410017,1768673446521,-500.0,0.00016712,3]
[402410019,1768673446531,-500.0,0.00016712,3]
[402410020,1768673446541,-500.0,0.00016712,3]
[402410022,1768673446550,-740.24,0.00016712,3]
[402410023,1768673446560,-626.64,0.00016712,3]
[402410025,1768673446570,-500.0,0.00016712,3]
[402410026,1768673446580,-1294.49,0.00016712,3]
[402410028,1768673446590,-753.11,0.00016712,3]
[402410030,1768673446599,-738.19,0.00016712,3]
[402410031,1768673446609,-500.0,0.00016712,3]
[402410033,1768673446619,-500.0,0.00016712,3]
[402410034,1768673446628,-257.29403538,0.00016712,3]
[402410036,1768673446637,-735.99,0.00016712,3]
[402410038,1768673446647,-500.0,0.00016712,3]
[402410039,1768673446657,-1244.19,0.00016712,3]
[402410041,1768673446671,-661.84,0.00016712,3]
[402410043,1768673446681,-666.96,0.00016712,3]
[402410044,1768673446690,-500.0,0.00016712,3]
[402410046,1768673446700,-500.0,0.00016712,3]
[402410048,1768673446711,-500.0,0.00016712,3]
[402410049,1768673446720,-500.0,0.00016712,3]
[402410051,1768673446730,-500.0,0.00016712,3]
[402410052,1768673446739,-1000.0,0.00016712,2]
[402410054,1768673446749,-1024.18,0.00016712,3]
[402410056,1768673446759,-820.17,0.00016712,3]
[402410057,1768673446769,-500.0,0.00016712,3]
[402410059,1768673446779,-500.0,0.00016712,3]
[402410061,1768673446789,-500.0,0.00016712,3]
[402410062,1768673446798,-500.0,0.00016712,3]
[402410064,1768673446808,-616.59,0.00016712,3]
[402410065,1768673446818,-500.0,0.00016712,3]
[402410067,1768673446828,-500.0,0.00016712,3]
[402410069,1768673446838,-500.0,0.00016712,3]
[402410070,1768673446848,-622.86303291,0.00016712,3]
[402410072,1768673446857,-500.0,0.00016712,3]
[402410074,1768673446868,-500.0,0.00016712,3]
[402410075,1768673446877,-500.0,0.00016712,3]
[402410077,1768673446887,-500.0,0.00016712,3]
[402410079,1768673446896,-500.0,0.00016712,3]
[402410080,1768673446906,-967.89,0.00016712,3]
[402410082,1768673446915,-500.0,0.00016712,3]
[402410083,1768673446924,-500.0,0.00016712,3]
[402410085,1768673446934,-500.0,0.00016712,3]
[402410086,1768673446943,-500.0,0.00016712,3]
[402410088,1768673446952,-500.0,0.00016712,3]
[402410089,1768673446962,-500.0,0.00016712,3]
[402410092,1768673446972,-1133.75,0.00016712,3]
[402410094,1768673446982,-500.0,0.00016712,3]
[402410096,1768673446991,-500.0,0.00016712,3]
[402410098,1768673447001,-858.07,0.00016712,3]
[402410100,1768673447010,-774.33,0.00016712,3]
[402410101,1768673447020,-942.42,0.00016712,3]
[402410102,1768673447029,-500.0,0.00016712,3]
[402410103,1768673447038,-500.0,0.00016712,3]
[402410104,1768673447048,-760.62,0.00016712,3]
[402410105,1768673447057,-500.0,0.00016712,3]
[402410106,1768673447066,-500.0,0.00016712,3]
[402410107,1768673447075,-557.15103403,0.00016712,3]
[402410108,1768673447084,-500.0,0.00016712,3]
[402410109,1768673447094,-500.0,0.00016712,3]
[402410110,1768673447104,-666.57,0.00016712,3]
[402410111,1768673447114,-500.0,0.00016712,3]
[402410112,1768673447124,-500.0,0.00016712,3]
[402410113,1768673447133,-1440.84,0.00016712,3]
[402410114,1768673447142,-500.0,0.00016712,3]
[402410115,1768673447154,-500.0,0.00016712,3]
[402410116,1768673447163,-500.0,0.00016712,3]
[402410117,1768673447172,-500.0,0.00016712,3]
[402410118,1768673447181,-500.0,0.00016712,3]
[402410119,1768673447190,-1149.6,0.00016712,3]
[402410120,1768673447199,-734.9,0.00016712,3]
[402410121,1768673447209,-500.0,0.00016712,3]
[402410122,1768673447218,-500.0,0.00016712,3]
[402410123,1768673447229,-500.0,0.00016712,3]
[402410124,1768673447238,-601.27,0.00016712,3]
[402410125,1768673447248,-500.0,0.00016712,3]
[402410126,1768673447257,-1319.02,0.00016712,3]
[402410127,1768673447266,-500.0,0.00016712,3]
[402410128,1768673447275,-500.0,0.00016712,3]
[402410129,1768673447284,-722.88,0.00016712,3]
[402410130,1768673447294,-570.18,0.00016712,3]
[402410131,1768673447303,-500.0,0.00016712,3]
[402410132,1768673447312,-1200.0,0.00016712,2]
[402410133,1768673447321,-526.57336217,0.00016712,3]
[402410134,1768673447330,-500.0,0.00016712,3]
[402410135,1768673447339,-500.0,0.00016712,3]
[402410136,1768673447349,-500.0,0.00016712,3]
[402410137,1768673447358,-648.16,0.00016712,3]
[402410138,1768673447367,-500.0,0.00016712,3]
[402410139,1768673447376,-500.0,0.00016712,3]
[402410140,1768673447385,-635.32816024,0.00016712,3]
[402410141,1768673447395,-500.0,0.00016712,3]
[402410142,1768673447405,-500.0,0.00016712,3]
[402410143,1768673447415,-500.0,0.00016712,3]
[402410144,1768673447424,-500.0,0.00016712,3]
[402410145,1768673447433,-500.0,0.00016712,3]
[402410147,1768673447443,-500.0,0.00016712,3]
[402410148,1768673447452,-500.0,0.00016712,3]
[402410149,1768673447462,-578.77,0.00016712,3]
[402410150,1768673447472,-500.0,0.00016712,3]
[402410151,1768673447482,-500.0,0.00016712,3]
[402410152,1768673447492,-500.0,0.00016712,3]
[402410154,1768673447502,-500.0,0.00016712,3]
[402410155,1768673447511,-989.92,0.00016712,3]
[402410157,1768673447521,-500.0,0.00016712,3]
[402410159,1768673447531,-1280.45,0.00016712,3]
[402410161,1768673447541,-500.0,0.00016712,3]
[402410163,1768673447551,-731.64,0.00016712,3]
[402410165,1768673447562,-836.51,0.00016712,3]
[402410167,1768673447572,-514.91211625,0.00016712,3]
[402410169,1768673447582,-538.98,0.00016712,3]
[402410171,1768673447592,-733.15,0.00016712,3]
[402410173,1768673447601,-500.0,0.00016712,3]
[402410175,1768673447612,-500.0,0.00016712,3]
[402410177,1768673447621,-500.0,0.00016712,3]
[402410179,1768673447636,-500.0,0.00016712,3]
[402410181,1768673447645,-500.0,0.00016712,3]
[402410183,1768673447658,-500.0,0.00016712,3]
[402410185,1768673447668,-708.25,0.00016712,3]
[402410187,1768673447678,-500.0,0.00016712,3]
[402410190,1768673447688,-620.62,0.00016712,3]
[402410192,1768673447699,-205.70334836,0.00016712,3]
[402410194,1768673447709,-500.0,0.00016712,3]
[402410196,1768673447719,-500.0,0.00016712,3]
[402410198,1768673447729,-500.0,0.00016712,3]
[402410200,1768673447740,-582.2,0.00016712,3]
[402410202,1768673447750,-719.8,0.00016712,3]
[402410204,1768673447762,-500.0,0.00016712,3]
[402410206,1768673447772,-500.0,0.00016712,3]
[402410208,1768673447781,-764.75,0.00016712,3]
[402410210,1768673447791,-859.3,0.00016712,3]
[402410212,1768673447800,-985.52,0.00016712,3]
[402410214,1768673447810,-1406.13,0.00016712,3]
[402410217,1768673447820,-1027.27,0.00016712,3]
[402410219,1768673447830,-877.66,0.00016712,3]
[402410221,1768673447840,-500.0,0.00016712,3]
[402410223,1768673447849,-500.0,0.00016712,3]
[402410225,1768673447858,-500.0,0.00016712,3]
[402410227,1768673447868,-500.0,0.00016712,3]
[402410229,1768673447877,-500.0,0.00016712,3]
[402410231,1768673447887,-500.0,0.00016712,3]
[402410233,1768673447896,-500.0,0.00016712,3]
[402410235,1768673447906,-566.69,0.00016712,3]
[402410237,1768673447915,-500.0,0.00016712,3]
[402410239,1768673447925,-743.02,0.00016712,3]
[402410241,1768673447934,-500.0,0.00016712,3]
[402410267,1768673448190,-857.01,0.00016712,3]
[402410269,1768673448213,-500.0,0.00016712,3]
[402410271,1768673448222,-500.0,0.00016712,3]
[402410273,1768673448231,-500.0,0.00016712,3]
[402410275,1768673448241,-690.28,0.00016712,3]
[402410277,1768673448252,-500.0,0.00016712,3]
[402410279,1768673448261,-592.71890736,0.00016712,3]
[402410281,1768673448271,-500.0,0.00016712,3]
[402410283,1768673448281,-500.0,0.00016712,3]
[402410285,1768673448291,-588.42,0.00016712,3]
[402410287,1768673448300,-629.49,0.00016712,3]
[402410289,1768673448311,-500.0,0.00016712,3]
[402410291,1768673448320,-500.0,0.00016712,3]
[402410293,1768673448330,-500.0,0.00016712,3]
[402410295,1768673448339,-500.0,0.00016712,3]
[402410297,1768673448348,-500.0,0.00016712,3]
[402410299,1768673448358,-490.09113196,0.00016712,3]
[402410301,1768673448368,-500.0,0.00016712,3]
[402410303,1768673448377,-500.0,0.00016712,3]
[402410305,1768673448387,-500.0,0.00016712,3]
[402410307,1768673448397,-500.0,0.00016712,3]
[402410309,1768673448407,-1075.75,0.00016712,3]
[402410311,1768673448417,-605.49,0.00016712,3]
[402410313,1768673448426,-500.0,0.00016712,3]
[402410315,1768673448436,-500.0,0.00016712,3]
[402410317,1768673448445,-500.0,0.00016712,3]
[402410319,1768673448455,-1080.0,0.00016712,3]
[402410321,1768673448464,-500.0,0.00016712,3]
[402410323,1768673448475,-855.76,0.00016712,3]
[402410325,1768673448485,-1053.38,0.00016712,3]
[402410327,1768673448495,-740.72,0.00016712,3]
[402410329,1768673448505,-681.97,0.00016712,3]
[402410332,1768673448515,-500.0,0.00016712,3]
[402410334,1768673448524,-500.0,0.00016712,3]
[402410336,1768673448535,-500.0,0.00016712,3]
[402410338,1768673448545,-600.35,0.00016712,3]
[402410340,1768673448555,-500.0,0.00016712,3]
[402410342,1768673448566,-751.23,0.00016712,3]
[402410344,1768673448576,-556.52,0.00016712,3]
[402410346,1768673448586,-1038.28,0.00016712,3]
[402410348,1768673448595,-1190.86,0.00016712,3]
[402410350,1768673448604,-500.0,0.00016712,3]
[402410352,1768673448614,-500.0,0.00016712,3]
[402410354,1768673448624,-500.0,0.00016712,3]
[402410356,1768673448633,-500.0,0.00016712,3]
[402410358,1768673448643,-810.68,0.00016712,3]
[402410360,1768673448653,-500.0,0.00016712,3]
[402410362,1768673448666,-500.0,0.00016712,3]
[402410364,1768673448675,-747.65,0.00016712,3]
[402410366,1768673448685,-500.0,0.00016712,3]
[402410368,1768673448695,-500.0,0.00016712,3]
[402410370,1768673448705,-693.66,0.00016712,3]
[402410372,1768673448715,-1087.06,0.00016712,3]
[402410374,1768673448724,-1099.81,0.00016712,3]
[402410376,1768673448736,-1460.66,0.00016712,3]
[402410378,1768673448745,-500.0,0.00016712,3]
[402410380,1768673448755,-500.0,0.00016712,3]
[402410382,1768673448764,-500.0,0.00016712,3]
[402410384,1768673448773,-932.62,0.00016712,3]
[402410386,1768673448783,-500.0,0.00016712,3]
[402410388,1768673448792,-500.0,0.00016712,3]
[402410390,1768673448801,-643.56,0.00016712,3]
[402410392,1768673448811,-500.0,0.00016712,3]
[402410394,1768673448820,-500.0,0.00016712,3]
[402410397,1768673448831,-500.0,0.00016712,3]
[402410399,1768673448840,-500.0,0.00016712,3]
[402410400,1768673448849,-500.0,0.00016712,3]
[402410403,1768673448859,-1153.67,0.00016712,3]
[402410405,1768673448869,-500.0,0.00016712,3]
[402410407,1768673448878,-500.0,0.00016712,3]
[402410408,1768673448888,-500.0,0.00016712,3]
[402410410,1768673448897,-1608.92,0.00016712,3]
[402410412,1768673448907,-1138.47,0.00016712,3]
[402410414,1768673448917,-500.0,0.00016712,3]
[402410417,1768673448927,-500.0,0.00016712,3]
[402410419,1768673448937,-500.0,0.00016712,3]
[402410420,1768673448947,-500.0,0.00016712,3]
[402410423,1768673448957,-500.0,0.00016712,3]
[402410424,1768673448968,-500.0,0.00016712,3]
[402410427,1768673448979,-500.0,0.00016712,3]
[402410429,1768673449004,-1129.5,0.00016712,3]
[402410431,1768673449013,-500.0,0.00016712,3]
[402410433,1768673449023,-500.0,0.00016712,3]
[402410434,1768673449033,-500.0,0.00016712,3]
[402410437,1768673449043,-500.0,0.00016712,3]
[402410439,1768673449054,-500.0,0.00016712,3]
[402410441,1768673449067,-1087.01,0.00016712,3]
[402410443,1768673449077,-786.84,0.00016712,3]
[402410445,1768673449087,-652.51,0.00016712,3]
[402410446,1768673449099,-569.38190569,0.00016712,3]
[402410449,1768673449109,-500.0,0.00016712,3]
[402410450,1768673449119,-500.0,0.00016712,3]
[402410453,1768673449129,-500.0,0.00016712,3]
[402410455,1768673449140,-500.0,0.00016712,3]
[402410457,1768673449150,-500.0,0.00016712,3]
[402410459,1768673449159,-342.33666613,0.00016712,3]
[402410460,1768673449169,-1015.35,0.00016712,3]
[402410462,1768673449178,-886.56,0.00016712,3]
[402410465,1768673449188,-541.3847786,0.00016712,3]
[402410467,1768673449197,-500.0,0.00016712,3]
[402410469,1768673449207,-500.0,0.00016712,3]
[402410471,1768673449217,-500.0,0.00016712,3]
[402410473,1768673449226,-500.0,0.00016712,3]
[402410475,1768673449236,-1624.38,0.00016712,3]
[402410477,1768673449245,-500.0,0.00016712,3]
[402410479,1768673449255,-500.0,0.00016712,3]
[402410481,1768673449264,-500.0,0.00016712,3]
[402410483,1768673449274,-1501.02,0.00016712,3]
[402410485,1768673449284,-500.0,0.00016712,3]
[402410487,1768673449293,-500.0,0.00016712,3]
[402410489,1768673449303,-500.0,0.00016712,3]
[402410491,1768673449312,-500.0,0.00016712,3]
[402410493,1768673449321,-500.0,0.00016712,3]
[402410495,1768673449332,-500.0,0.00016712,3]
[402410497,1768673449341,-151.0,0.00016712,2]
[402410499,1768673449352,-500.0,0.00016712,3]
[402410501,1768673449363,-1475.41,0.00016712,3]
[402410503,1768673449373,-470.6383794,0.00016712,3]
[402410505,1768673449382,-651.72,0.00016712,3]
[402410507,1768673449392,-1969.51,0.00016712,3]
[402410510,1768673449407,-500.0,0.00016712,3]
[402410512,1768673449417,-500.0,0.00016712,3]
[402410514,1768673449426,-500.0,0.00016712,3]
[402410516,1768673449436,-1485.36,0.00016712,3]
[402410518,1768673449445,-500.0,0.00016712,3]
[402410520,1768673449455,-489.41292271,0.00016712,3]
[402410522,1768673449464,-500.0,0.00016712,3]
[402410524,1768673449474,-942.1,0.00016712,3]
[402410526,1768673449485,-500.0,0.00016712,3]
[402410528,1768673449494,-700.11,0.00016712,3]
[402410530,1768673449504,-775.53,0.00016712,3]
[402410532,1768673449513,-500.0,0.00016712,3]
[402410534,1768673449525,-500.0,0.00016712,3]
[402410536,1768673449535,-500.0,0.00016712,3]
[402410538,1768673449545,-1071.8,0.00016712,3]
[402410540,1768673449556,-500.0,0.00016712,3]
[402410542,1768673449566,-500.0,0.00016712,3]
[402410544,1768673449576,-500.0,0.00016712,3]
[402410546,1768673449586,-584.93,0.00016712,3]
[402410548,1768673449596,-500.0,0.00016712,3]
[402410550,1768673449605,-500.0,0.00016712,3]
[402410552,1768673449615,-500.0,0.00016712,3]
[402410554,1768673449625,-500.0,0.00016712,3]
[402410556,1768673449634,-500.0,0.00016712,3]
[402410558,1768673449644,-500.0,0.00016712,3]
[402410560,1768673449654,-1301.71,0.00016712,3]
[402410562,1768673449667,-500.0,0.00016712,3]
[402410565,1768673449676,-500.0,0.00016712,3]
[402410567,1768673449687,-578.42,0.00016712,3]
[402410569,1768673449696,-1122.24,0.00016712,3]
[402410571,1768673449707,-500.0,0.00016712,3]
[402410572,1768673449716,-500.0,0.00016712,3]
[402410574,1768673449726,-584.74,0.00016712,3]
[402410577,1768673449740,-500.0,0.00016712,3]
[402410578,1768673449750,-500.0,0.00016712,3]
[402410581,1768673449759,-5659.2,0.00016712,3]
[402410583,1768673449770,-500.0,0.00016712,3]
[402410585,1768673449780,-1284.78,0.00016712,3]
[402410587,1768673449792,-500.0,0.00016712,3]
[402410589,1768673449801,-500.0,0.00016712,3]
[402410591,1768673449809,-1471.79,0.00016712,3]
[402410593,1768673449819,-655.67,0.00016712,3]
[402410595,1768673449828,-500.0,0.00016712,3]
[402410597,1768673449838,-500.0,0.00016712,3]
[402410599,1768673449849,-500.0,0.00016712,3]
[402410601,1768673449859,-1894.43,0.00016712,3]
[402410603,1768673449869,-596.03,0.00016712,3]
[402410605,1768673449878,-668.8,0.00016712,3]
[402410607,1768673449887,-1128.35,0.00016712,3]
[402410609,1768673449897,-500.0,0.00016712,3]
[402410611,1768673449906,-672.38,0.00016712,3]
[402410613,1768673449915,-525.51,0.00016712,3]
[402410615,1768673449926,-500.0,0.00016712,3]
[402410617,1768673449935,-500.0,0.00016712,3]
[402410619,1768673449944,-500.0,0.00016712,3]
[402410621,1768673449954,-500.0,0.00016712,3]
[402410623,1768673449964,-500.0,0.00016712,3]
[402410625,1768673449974,-500.0,0.00016712,3]
[402410627,1768673449984,-500.0,0.00016712,3]
[402410629,1768673449993,-500.0,0.00016712,3]
[402410631,1768673450002,-500.0,0.00016712,3]
[402410633,1768673450012,-500.0,0.00016712,3]
[402410635,1768673450022,-500.0,0.00016712,3]
[402410637,1768673450031,-1210.89,0.00016712,3]
[402410639,1768673450041,-500.0,0.00016712,3]
[402410641,1768673450050,-500.0,0.00016712,3]
[402410643,1768673450060,-500.0,0.00016712,3]
[402410645,1768673450070,-500.0,0.00016712,3]
[402410647,1768673450079,-500.0,0.00016712,3]
[402410649,1768673450090,-500.0,0.00016712,3]
[402410651,1768673450100,-500.0,0.00016712,3]
[402410653,1768673450109,-1023.74,0.00016712,3]
[402410655,1768673450118,-656.83,0.00016712,3]
[402410657,1768673450128,-500.0,0.00016712,3]
[402410659,1768673450138,-531.11,0.00016712,3]
[402410662,1768673450147,-858.8,0.00016712,3]
[402410663,1768673450157,-582.55,0.00016712,3]
[402410665,1768673450167,-932.84,0.00016712,3]
[402410668,1768673450177,-500.0,0.00016712,3]
[402410669,1768673450187,-500.0,0.00016712,3]
[402410672,1768673450198,-500.0,0.00016712,3]
[402410673,1768673450208,-621.03,0.00016712,3]
[402410675,1768673450217,-500.0,0.00016712,3]
[402410677,1768673450229,-765.06,0.00016712,3]
[402410679,1768673450238,-1105.49,0.00016712,3]
[402410681,1768673450247,-500.0,0.00016712,3]
[402410683,1768673450256,-500.0,0.00016712,3]
[402410685,1768673450266,-1199.9,0.00016712,3]
[402410687,1768673450276,-2777.39,0.00016712,3]
[402410689,1768673450286,-729.29,0.00016712,3]
[402410691,1768673450295,-1041.61,0.00016712,3]
[402410693,1768673450304,-500.0,0.00016712,3]
[402410695,1768673450313,-765.87,0.00016712,3]
[402410697,1768673450321,-500.0,0.00016712,3]
[402410699,1768673450330,-500.0,0.00016712,3]
[402410701,1768673450338,-500.0,0.00016712,3]
[402410703,1768673450347,-500.0,0.00016712,3]
[402410705,1768673450356,-979.16,0.00016712,3]
[402410707,1768673450366,-500.0,0.00016712,3]
[402410709,1768673450374,-500.0,0.00016712,3]
[402410711,1768673450383,-507.14,0.00016712,3]
[402410713,1768673450392,-500.0,0.00016712,3]
[402410715,1768673450401,-1302.88,0.00016712,3]
[402410717,1768673450411,-500.0,0.00016712,3]
[402410719,1768673450419,-500.0,0.00016712,3]
[402410721,1768673450428,-500.0,0.00016712,3]
[402410722,1768673450438,-500.0,0.00016712,3]
[402410724,1768673450447,-624.03,0.00016712,3]
[402410726,1768673450457,-833.87,0.00016712,3]
[402410728,1768673450466,-541.15,0.00016712,3]
[402410730,1768673450476,-517.75,0.00016712,3]
[402410732,1768673450486,-500.0,0.00016712,3]
[402410733,1768673450495,-1412.58,0.00016712,3]
[402410734,1768673450504,-1173.43,0.00016712,3]
[402410735,1768673450513,-926.54,0.00016712,3]
[402410736,1768673450588,-957.16,0.00016712,3]
[402410737,1768673450598,-500.0,0.00016712,3]
[402410738,1768673450606,-500.0,0.00016712,3]
[402410739,1768673450615,-500.0,0.00016712,3]
[402410740,1768673450624,-500.0,0.00016712,3]
[402410741,1768673450633,-895.88,0.00016712,3]
[402410742,1768673450642,-525.19722982,0.00016712,3]
[402410743,1768673450651,-500.0,0.00016712,3]
[402410744,1768673450662,-500.0,0.00016712,3]
[402410745,1768673450671,-1048.61,0.00016712,3]
[402410746,1768673450680,-1100.62,0.00016712,3]
[402410747,1768673450688,-500.0,0.00016712,3]
[402410748,1768673450699,-500.0,0.00016712,3]
[402410750,1768673450709,-507.87,0.00016712,3]
[402410751,1768673450718,-500.0,0.00016712,3]
[402410753,1768673450728,-500.0,0.00016712,3]
[402410754,1768673450737,-500.0,0.00016712,3]
[402410756,1768673450747,-500.0,0.00016712,3]
[402410758,1768673450756,-500.0,0.00016712,3]
[402410760,1768673450765,-691.01,0.00016712,3]
[402410762,1768673450774,-500.0,0.00016712,3]
[402410764,1768673450783,-500.0,0.00016712,3]
[402410766,1768673450793,-727.56,0.00016712,3]
[402410768,1768673450802,-1899.74,0.00016712,3]
[402410770,1768673450812,-500.0,0.00016712,3]
[402410772,1768673450821,-500.0,0.00016712,3]
[402410774,1768673450830,-751.41,0.00016712,3]
[402410776,1768673450840,-500.0,0.00016712,3]
[402410778,1768673450848,-641.3,0.00016712,3]
[402410780,1768673450858,-576.24,0.00016712,3]
[402410782,1768673450868,-500.0,0.00016712,3]
[402410784,1768673450877,-500.0,0.00016712,3]
[402410786,1768673450887,-500.0,0.00016712,3]
[402410788,1768673450897,-500.0,0.00016712,3]
[402410790,1768673450908,-500.0,0.00016712,3]
[402410792,1768673450919,-255.78047731,0.00016712,3]
[402410794,1768673450929,-500.0,0.00016712,3]
[402410796,1768673450940,-907.81,0.00016712,3]
[402410798,1768673450950,-530.35,0.00016712,3]
[402410800,1768673450960,-525.87,0.00016712,3]
[402410802,1768673450969,-500.0,0.00016712,3]
[402410804,1768673450979,-500.0,0.00016712,3]
[402410806,1768673450989,-891.06,0.00016712,3]
[402410808,1768673450998,-1118.5,0.00016712,3]
[402410810,1768673451009,-500.0,0.00016712,3]
[402410812,1768673451018,-500.0,0.00016712,3]
[402410814,1768673451027,-1197.27,0.00016712,3]
[402410816,1768673451036,-1505.66,0.00016712,3]